fUST/lending_fUST_20250702
["ID","MTS","AMOUNT","RATE_DAILY","PERIOD"]
[369041544,1751443841016,-258.58987191,0.00016438,2]
[369041546,1751443841026,-460.0,0.00016438,2]
[369041548,1751443841036,-460.0,0.00016438,2]
[369041550,1751443841045,-460.0,0.00016438,2]
[369041552,1751443841055,-1879.38,0.00016438,2]
[369041554,1751443841065,-1637.15,0.00016438,2]
[369041556,1751443841075,-461.36200178,0.00016438,2]
[369041558,1751443841084,-426.08296095,0.00016438,2]
[369041560,1751443841093,-460.0,0.00016438,2]
[369041562,1751443841103,-460.0,0.00016438,2]
[369041564,1751443841113,-460.0,0.00016438,2]
[369041566,1751443841123,-460.0,0.00016438,2]
[369041568,1751443841133,-460.0,0.00016438,2]
[369041570,1751443841142,-460.0,0.00016438,2]
[369041572,1751443841152,-460.0,0.00016438,2]
[369041574,1751443841161,-1010.49,0.00016438,2]
[369041576,1751443841171,-460.0,0.00016438,2]
[369041578,1751443841180,-460.0,0.00016438,2]
[369041580,1751443841190,-460.0,0.00016438,2]
[369041582,1751443841200,-460.0,0.00016438,2]
[369041585,1751443841210,-524.46355067,0.00016438,2]
[369041587,1751443841219,-1289.25,0.00016438,2]
[369041589,1751443841229,-376.10501565,0.00016438,2]
[369041591,1751443841239,-1429.84,0.00016438,2]
[369041593,1751443841248,-1075.42,0.00016438,2]
[369041595,1751443841258,-460.0,0.00016438,2]
[369041597,1751443841269,-460.0,0.00016438,2]
[369041599,1751443841278,-460.0,0.00016438,2]
[369041601,1751443841288,-460.0,0.00016438,2]
[369041603,1751443841298,-460.0,0.00016438,2]
[369041605,1751443841307,-460.0,0.00016438,2]
[369041606,1751443841320,-645.44,0.00016438,2]
[369041607,1751443841334,-460.0,0.00016438,2]
[369041608,1751443841343,-3279.83,0.00016438,2]
[369041609,1751443841352,-460.0,0.00016438,2]
[369041610,1751443841362,-845.66,0.00016438,2]
[369041611,1751443841371,-461.56515703,0.00016438,2]
[369041612,1751443841380,-460.0,0.00016438,2]
[369041613,1751443841390,-460.0,0.00016438,2]
[369041614,1751443841399,-460.0,0.00016438,2]
[369041615,1751443841408,-460.0,0.00016438,2]
[369041616,1751443841417,-461.7316526,0.00016438,2]
[369041617,1751443841427,-3040.19,0.00016438,2]
[369041618,1751443841436,-5322.34,0.00016438,2]
[369041619,1751443841446,-460.0,0.00016438,2]
[369041620,1751443841455,-460.0,0.00016438,2]
[369041621,1751443841465,-460.0,0.00016438,2]
[369041622,1751443841475,-882.43,0.00016438,2]
[369041623,1751443841484,-460.0,0.00016438,2]
[369041624,1751443841494,-532.43,0.00016438,2]
[369041625,1751443841503,-635.2,0.00016438,2]
[369041626,1751443841513,-460.0,0.00016438,2]
[369041627,1751443841522,-460.0,0.00016438,2]
[369041628,1751443841531,-460.0,0.00016438,2]
[369041629,1751443841541,-460.0,0.00016438,2]
[369041630,1751443841550,-600.73,0.00016438,2]
[369041631,1751443841560,-460.0,0.00016438,2]
[369041632,1751443841569,-460.0,0.00016438,2]
[369041633,1751443841579,-460.0,0.00016438,2]
[369041634,1751443841588,-460.0,0.00016438,2]
[369041635,1751443841598,-460.0,0.00016438,2]
[369041636,1751443841607,-460.0,0.00016438,2]
[369041637,1751443841616,-460.0,0.00016438,2]
[369041638,1751443841626,-460.0,0.00016438,2]
[369041639,1751443841635,-500.1,0.00016438,2]
[369041640,1751443841644,-500.0,0.00016438,2]
[369041641,1751443841652,-460.0,0.00016438,2]
[369041642,1751443841661,-460.0,0.00016438,2]
[369041643,1751443841670,-466.60094547,0.00016438,2]
[369041644,1751443841680,-1471.72,0.00016438,2]
[369041645,1751443841689,-881.02,0.00016438,2]
[369041646,1751443841698,-623.2,0.00016438,2]
[369041647,1751443841708,-460.0,0.00016438,2]
[369041648,1751443841718,-460.0,0.00016438,2]
[369041649,1751443841727,-460.0,0.00016438,2]
[369041650,1751443841737,-460.0,0.00016438,2]
[369041651,1751443841747,-460.0,0.00016438,2]
[369041652,1751443841757,-460.0,0.00016438,2]
[369041653,1751443841766,-445.34390082,0.00016438,2]
[369041654,1751443841776,-460.0,0.00016438,2]
[369041655,1751443841786,-460.0,0.00016438,2]
[369041656,1751443841796,-460.0,0.00016438,2]
[369041657,1751443841805,-460.0,0.00016438,2]
[369041658,1751443841816,-598.48925578,0.00016438,2]
[369041659,1751443841825,-934.62,0.00016438,2]
[369041661,1751443841835,-186.67962921,0.00016438,2]
[369041663,1751443841844,-460.0,0.00016438,2]
[369041665,1751443841854,-1564.84,0.00016438,2]
[369041667,1751443841863,-460.0,0.00016438,2]
[369041669,1751443841873,-460.0,0.00016438,2]
[369041670,1751443841882,-2631.81,0.00016438,2]
[369041672,1751443841891,-460.0,0.00016438,2]
[369041673,1751443841901,-460.0,0.00016438,2]
[369041675,1751443841911,-152.87346593,0.00016438,2]
[369041677,1751443841921,-500.49937775,0.00016438,2]
[369041679,1751443841930,-460.0,0.00016438,2]
[369041681,1751443841939,-460.0,0.00016438,2]
[369041683,1751443841949,-460.0,0.00016438,2]
[369041685,1751443841959,-460.0,0.00016438,2]
[369041687,1751443841970,-460.0,0.00016438,2]
[369041689,1751443841983,-460.0,0.00016438,2]
[369041691,1751443841992,-460.0,0.00016438,2]
[369041693,1751443842001,-460.0,0.00016438,2]
[369041695,1751443842011,-460.0,0.00016438,2]
[369041697,1751443842023,-460.0,0.00016438,2]
[369041699,1751443842032,-460.0,0.00016438,2]
[369041701,1751443842041,-460.0,0.00016438,2]
[369041703,1751443842052,-460.0,0.00016438,2]
[369041705,1751443842062,-460.0,0.00016438,2]
[369041707,1751443842071,-460.0,0.00016438,2]
[369041709,1751443842080,-500.0,0.00016438,2]
[369041711,1751443842089,-500.0,0.00016438,2]
[369041713,1751443842098,-191.36163705,0.00016438,2]
[369041715,1751443842108,-460.0,0.00016438,2]
[369041717,1751443842118,-460.0,0.00016438,2]
[369041719,1751443842127,-460.0,0.00016438,2]
[369041721,1751443842137,-460.0,0.00016438,2]
[369041723,1751443842146,-3305.11,0.00016438,2]
[369041725,1751443842156,-500.0,0.00016438,2]
[369041727,1751443842166,-500.0,0.00016438,2]
[369041729,1751443842176,-500.0,0.00016438,2]
[369041731,1751443842185,-460.0,0.00016438,2]
[369041733,1751443842195,-500.0,0.00016438,2]
[369041736,1751443842204,-2728.27,0.00016438,2]
[369041737,1751443842214,-849.36,0.00016438,2]
[369041740,1751443842223,-460.0,0.00016438,2]
[369041742,1751443842233,-460.0,0.00016438,2]
[369041744,1751443842243,-460.0,0.00016438,2]
[369041746,1751443842252,-460.0,0.00016438,2]
[369041748,1751443842261,-460.13500412,0.00016438,2]
[369041750,1751443842270,-460.0,0.00016438,2]
[369041752,1751443842279,-615.95,0.00016438,2]
[369041753,1751443842288,-460.0,0.00016438,2]
[369041755,1751443842297,-845.22,0.00016438,2]
[369041757,1751443842306,-460.0,0.00016438,2]
[369041759,1751443842315,-460.0,0.00016438,2]
[369041761,1751443842325,-462.76952307,0.00016438,2]
[369041763,1751443842334,-460.0,0.00016438,2]
[369041765,1751443842343,-266.84678097,0.00016438,2]
[369041768,1751443842352,-594.16,0.00016438,2]
[369041769,1751443842362,-460.0,0.00016438,2]
[369041772,1751443842371,-460.0,0.00016438,2]
[369041774,1751443842381,-460.0,0.00016438,2]
[369041775,1751443842390,-460.0,0.00016438,2]
[369041777,1751443842400,-460.0,0.00016438,2]
[369041779,1751443842409,-460.0,0.00016438,2]
[369041781,1751443842419,-264.70383587,0.00016438,2]
[369041784,1751443842429,-722.43,0.00016438,2]
[369041786,1751443842438,-515.26,0.00016438,2]
[369041788,1751443842447,-184.08109734,0.00016438,2]
[369041790,1751443842459,-460.0,0.00016438,2]
[369041792,1751443842468,-460.0,0.00016438,2]
[369041794,1751443842477,-460.0,0.00016438,2]
[369041796,1751443842487,-460.0,0.00016438,2]
[369041798,1751443842496,-460.0,0.00016438,2]
[369041800,1751443842506,-460.0,0.00016438,2]
[369041802,1751443842515,-460.0,0.00016438,2]
[369041804,1751443842524,-460.0,0.00016438,2]
[369041806,1751443842534,-659.03,0.00016438,2]
[369041808,1751443842543,-1153.43,0.00016438,2]
[369041810,1751443842553,-709.32,0.00016438,2]
[369041812,1751443842562,-547.81,0.00016438,2]
[369041814,1751443842572,-460.0,0.00016438,2]
[369041816,1751443842581,-589.57744576,0.00016438,2]
[369041818,1751443842591,-1284.04,0.00016438,2]
[369041820,1751443842600,-460.78063092,0.00016438,2]
[369041822,1751443842610,-460.0,0.00016438,2]
[369041824,1751443842620,-460.0,0.00016438,2]
[369041826,1751443842629,-500.0,0.00016438,2]
[369041828,1751443842639,-2203.89,0.00016438,2]
[369041830,1751443842648,-460.0,0.00016438,2]
[369041832,1751443842658,-460.0,0.00016438,2]
[369041834,1751443842667,-460.0,0.00016438,2]
[369041836,1751443842677,-460.0,0.00016438,2]
[369041838,1751443842687,-693.55,0.00016438,2]
[369041840,1751443842696,-460.0,0.00016438,2]
[369041842,1751443842705,-460.0,0.00016438,2]
[369041844,1751443842715,-460.0,0.00016438,2]
[369041846,1751443842724,-352.50938378,0.00016438,2]
[369041848,1751443842733,-460.0,0.00016438,2]
[369041850,1751443842743,-2135.01,0.00016438,2]
[369041852,1751443842752,-460.0,0.00016438,2]
[369041854,1751443842761,-460.0,0.00016438,2]
[369041856,1751443842771,-500.0,0.00016438,2]
[369041858,1751443842780,-500.0,0.00016438,2]
[369041861,1751443842791,-500.0,0.00016438,2]
[369041863,1751443842800,-500.0,0.00016438,2]
[369041865,1751443842810,-7054.28,0.00016438,2]
[369041867,1751443842819,-644.54,0.00016438,2]
[369041869,1751443842829,-500.0,0.00016438,2]
[369041871,1751443842839,-500.0,0.00016438,2]
[369041873,1751443842849,-500.0,0.00016438,2]
[369041875,1751443842858,-500.0,0.00016438,2]
[369041877,1751443842867,-500.0,0.00016438,2]
[369041879,1751443842876,-500.0,0.00016438,2]
[369041881,1751443842885,-460.0,0.00016438,2]
[369041883,1751443842895,-174.7003,0.00016438,2]
[369041885,1751443842904,-460.0,0.00016438,2]
[369041887,1751443842913,-460.0,0.00016438,2]
[369041889,1751443842923,-460.0,0.00016438,2]
[369041891,1751443842932,-460.0,0.00016438,2]
[369041893,1751443842941,-460.0,0.00016438,2]
[369041895,1751443842950,-460.0,0.00016438,2]
[369041897,1751443842959,-460.0,0.00016438,2]
[369041899,1751443842968,-678.82,0.00016438,2]
[369041901,1751443842983,-863.54,0.00016438,2]
[369041902,1751443842993,-460.0,0.00016438,2]
[369041903,1751443843002,-652.57,0.00016438,2]
[369041904,1751443843012,-1564.8,0.00016438,2]
[369041905,1751443843022,-750.41,0.00016438,2]
[369041906,1751443843031,-460.0,0.00016438,2]
[369041907,1751443843040,-595.58324707,0.00016438,2]
[369041908,1751443843049,-460.0,0.00016438,2]
[369041909,1751443843060,-460.0,0.00016438,2]
[369041910,1751443843069,-460.0,0.00016438,2]
[369041911,1751443843078,-460.0,0.00016438,2]
[369041912,1751443843088,-460.0,0.00016438,2]
[369041913,1751443843098,-460.0,0.00016438,2]
[369041914,1751443843107,-586.48,0.00016438,2]
[369041915,1751443843117,-4867.25,0.00016438,2]
[369041916,1751443843126,-921.43,0.00016438,2]
[369041917,1751443843136,-166.0,0.00016438,2]
[369041918,1751443843145,-345.21844653,0.00016473,2]
[369041919,1751443843155,-490.71279274,0.00016473,2]
[369041920,1751443843164,-210.31310291,0.00016473,2]
[369041941,1751443843335,-246.80881703,0.00016473,2]
[369041943,1751443843345,-500.0,0.00016473,2]
[369041945,1751443843355,-500.53505191,0.00016473,2]
[369041947,1751443843364,-500.0,0.00016473,2]
[369041949,1751443843373,-500.0,0.00016473,2]
[369041951,1751443843382,-513.09432904,0.00016473,2]
[369041953,1751443843392,-500.0,0.00016473,2]
[369041955,1751443843402,-500.0,0.00016473,2]
[369041957,1751443843411,-500.0,0.00016473,2]
[369041959,1751443843420,-500.0,0.00016473,2]
[369041961,1751443843429,-500.0,0.00016473,2]
[369041963,1751443843439,-500.0,0.00016473,2]
[369041965,1751443843448,-500.0,0.00016473,2]
[369041967,1751443843458,-500.0,0.00016473,2]
[369041969,1751443843467,-500.0,0.00016473,2]
[369041971,1751443843477,-500.0,0.00016473,2]
[369041973,1751443843486,-716.195754,0.00016483,2]
[369041975,1751443843496,-742.6949969,0.00016538,2]
[369041977,1751443843505,-2415.229899,0.00016542,2]
[369041979,1751443843514,-770.17471178,0.00016593,2]
[369041981,1751443843524,-773.6264288,0.00016626,2]
[369041983,1751443843533,-798.67117612,0.00016648,2]
[369041985,1751443843543,-828.22200964,0.00016703,2]
[369041987,1751443843553,-500.0,0.00016711,2]
[369041989,1751443843563,-500.0,0.00016711,2]
[369041991,1751443843572,-500.0,0.00016711,2]
[369041993,1751443843582,-500.0,0.00016711,2]
[369041995,1751443843591,-500.0,0.00016711,2]
[369041997,1751443843601,-500.0,0.00016711,2]
[369041999,1751443843610,-500.0,0.00016711,2]
[369042001,1751443843620,-151.0,0.00016712,2]
[369042003,1751443843630,-151.0,0.00016712,2]
[369042005,1751443843639,-460.0,0.00016712,2]
[369042007,1751443843648,-576.57480643,0.00016712,2]
[369042009,1751443843658,-460.0,0.00016712,2]
[369042011,1751443843667,-460.0,0.00016712,2]
[369042013,1751443843677,-461.3544805,0.00016712,2]
[369042016,1751443843687,-339.97630284,0.00016712,2]
[369042018,1751443843696,-460.0,0.00016712,2]
[369042020,1751443843706,-460.0,0.00016712,2]
[369042022,1751443843716,-460.0,0.00016712,2]
[369042024,1751443843726,-460.0,0.00016712,2]
[369042026,1751443843736,-460.0,0.00016712,2]
[369042027,1751443843746,-460.0,0.00016712,2]
[369042030,1751443843756,-404.25209604,0.00016712,2]
[369042032,1751443843766,-460.0,0.00016712,2]
[369042034,1751443843776,-460.0,0.00016712,2]
[369042036,1751443843785,-460.0,0.00016712,2]
[369042038,1751443843795,-460.0,0.00016712,2]
[369042040,1751443843805,-460.0,0.00016712,2]
[369042042,1751443843815,-460.0,0.00016712,2]
[369042044,1751443843825,-460.0,0.00016712,2]
[369042046,1751443843834,-460.0,0.00016712,2]
[369042048,1751443843843,-460.0,0.00016712,2]
[369042050,1751443843853,-460.0,0.00016712,2]
[369042052,1751443843862,-460.0,0.00016712,2]
[369042053,1751443843872,-460.0,0.00016712,2]
[369042055,1751443843881,-280.19785712,0.00016712,2]
[369042058,1751443843891,-794.32,0.00016712,2]
[369042060,1751443843901,-151.0,0.00016712,2]
[369042062,1751443843910,-460.0,0.00016712,2]
[369042064,1751443843920,-468.54,0.00016712,2]
[369042066,1751443843930,-460.0,0.00016712,2]
[369042068,1751443843939,-460.0,0.00016712,2]
[369042070,1751443843949,-460.0,0.00016712,2]
[369042072,1751443843959,-460.0,0.00016712,2]
[369042074,1751443843969,-460.0,0.00016712,2]
[369042076,1751443843981,-460.0,0.00016712,2]
[369042078,1751443843991,-460.0,0.00016712,2]
[369042080,1751443844001,-850.98,0.00016712,2]
[369042082,1751443844012,-460.0,0.00016712,2]
[369042084,1751443844022,-460.0,0.00016712,2]
[369042086,1751443844032,-460.0,0.00016712,2]
[369042088,1751443844042,-460.0,0.00016712,2]
[369042090,1751443844052,-568.63,0.00016712,2]
[369042092,1751443844061,-460.0,0.00016712,2]
[369042094,1751443844072,-460.0,0.00016712,2]
[369042096,1751443844081,-460.0,0.00016712,2]
[369042098,1751443844091,-460.0,0.00016712,2]
[369042100,1751443844100,-232.56138905,0.00016712,2]
[369042102,1751443844110,-460.0,0.00016712,2]
[369042104,1751443844119,-460.0,0.00016712,2]
[369042106,1751443844129,-460.0,0.00016712,2]
[369042108,1751443844139,-460.0,0.00016712,2]
[369042110,1751443844148,-460.0,0.00016712,2]
[369042112,1751443844158,-460.0,0.00016712,2]
[369042114,1751443844167,-470.65675599,0.00016712,2]
[369042116,1751443844177,-460.0,0.00016712,2]
[369042118,1751443844186,-460.0,0.00016712,2]
[369042121,1751443844196,-460.0,0.00016712,2]
[369042122,1751443844206,-460.0,0.00016712,2]
[369042124,1751443844215,-460.0,0.00016712,2]
[369042126,1751443844226,-299.83168018,0.00016712,2]
[369042128,1751443844235,-460.0,0.00016712,2]
[369042130,1751443844244,-522.93165571,0.00016712,2]
[369042132,1751443844254,-475.54,0.00016712,2]
[369042134,1751443844264,-460.0,0.00016712,2]
[369042137,1751443844274,-460.0,0.00016712,2]
[369042139,1751443844283,-460.0,0.00016712,2]
[369042141,1751443844293,-460.0,0.00016712,2]
[369042143,1751443844303,-460.0,0.00016712,2]
[369042145,1751443844312,-460.0,0.00016712,2]
[369042147,1751443844322,-460.0,0.00016712,2]
[369042149,1751443844332,-445.00789204,0.00016712,2]
[369042151,1751443844342,-460.0,0.00016712,2]
[369042153,1751443844352,-460.0,0.00016712,2]
[369042155,1751443844361,-460.0,0.00016712,2]
[369042157,1751443844371,-500.0,0.00016712,2]
[369042159,1751443844380,-181.79866227,0.00016712,2]
[369042161,1751443844389,-835.56,0.00016712,2]
[369042163,1751443844399,-274.23349507,0.00016712,2]
[369042165,1751443844409,-768.71,0.00016712,2]
[369042167,1751443844418,-460.0,0.00016712,2]
[369042169,1751443844427,-460.0,0.00016712,2]
[369042171,1751443844437,-465.86405709,0.00016712,2]
[369042173,1751443844446,-460.0,0.00016712,2]
[369042175,1751443844455,-460.0,0.00016712,2]
[369042176,1751443844465,-460.0,0.00016712,2]
[369042177,1751443844479,-460.0,0.00016712,2]
[369042178,1751443844490,-460.0,0.00016712,2]
[369042179,1751443844500,-460.0,0.00016712,2]
[369042180,1751443844511,-460.0,0.00016712,2]
[369042181,1751443844521,-535.08,0.00016712,2]
[369042182,1751443844531,-460.0,0.00016712,2]
[369042183,1751443844541,-460.0,0.00016712,2]
[369042184,1751443844551,-1879.38,0.00016712,2]
[369042185,1751443844561,-1637.15,0.00016712,2]
[369042186,1751443844571,-460.0,0.00016712,2]
[369042187,1751443844581,-460.0,0.00016712,2]
[369042188,1751443844591,-460.0,0.00016712,2]
[369042189,1751443844601,-460.0,0.00016712,2]
[369042190,1751443844611,-460.0,0.00016712,2]
[369042191,1751443844621,-1010.49,0.00016712,2]
[369042192,1751443844631,-460.0,0.00016712,2]
[369042193,1751443844640,-460.0,0.00016712,2]
[369042194,1751443844650,-460.0,0.00016712,2]
[369042195,1751443844661,-1289.25,0.00016712,2]
[369042196,1751443844670,-1429.84,0.00016712,2]
[369042198,1751443844680,-1075.42,0.00016712,2]
[369042200,1751443844690,-460.0,0.00016712,2]
[369042202,1751443844699,-482.97396457,0.00016712,2]
[369042204,1751443844709,-460.0,0.00016712,2]
[369042206,1751443844719,-460.0,0.00016712,2]
[369042208,1751443844728,-460.0,0.00016712,2]
[369042210,1751443844737,-645.44,0.00016712,2]
[369042212,1751443844747,-3279.83,0.00016712,2]
[369042214,1751443844756,-460.0,0.00016712,2]
[369042216,1751443844765,-460.0,0.00016712,2]
[369042218,1751443844775,-845.66,0.00016712,2]
[369042220,1751443844785,-460.0,0.00016712,2]
[369042222,1751443844795,-460.0,0.00016712,2]
[369042224,1751443844805,-460.0,0.00016712,2]
[369042226,1751443844815,-460.0,0.00016712,2]
[369042228,1751443844824,-3040.19,0.00016712,2]
[369042230,1751443844834,-5322.34,0.00016712,2]
[369042232,1751443844843,-460.0,0.00016712,2]
[369042235,1751443844853,-536.6620076,0.00016712,2]
[369042237,1751443844863,-460.0,0.00016712,2]
[369042239,1751443844873,-882.43,0.00016712,2]
[369042241,1751443844883,-460.0,0.00016712,2]
[369042243,1751443844892,-532.43,0.00016712,2]
[369042245,1751443844902,-635.2,0.00016712,2]
[369042247,1751443844912,-460.0,0.00016712,2]
[369042249,1751443844921,-460.0,0.00016712,2]
[369042251,1751443844930,-600.73,0.00016712,2]
[369042253,1751443844940,-460.0,0.00016712,2]
[369042255,1751443844949,-460.0,0.00016712,2]
[369042257,1751443844959,-460.0,0.00016712,2]
[369042259,1751443844969,-460.0,0.00016712,2]
[369042261,1751443844984,-460.0,0.00016712,2]
[369042263,1751443844994,-460.0,0.00016712,2]
[369042265,1751443845004,-500.1,0.00016712,2]
[369042267,1751443845014,-460.0,0.00016712,2]
[369042269,1751443845025,-460.0,0.00016712,2]
[369042271,1751443845034,-881.02,0.00016712,2]
[369042273,1751443845044,-623.2,0.00016712,2]
[369042275,1751443845056,-460.0,0.00016712,2]
[369042277,1751443845067,-460.0,0.00016712,2]
[369042279,1751443845076,-340.34204906,0.00016712,2]
[369042281,1751443845086,-433.68334654,0.00016712,2]
[369042283,1751443845096,-1471.72,0.00016712,2]
[369042285,1751443845107,-460.0,0.00016712,2]
[369042288,1751443845119,-460.0,0.00016712,2]
[369042290,1751443845130,-934.62,0.00016712,2]
[369042292,1751443845140,-460.0,0.00016712,2]
[369042293,1751443845150,-1564.84,0.00016712,2]
[369042295,1751443845159,-460.0,0.00016712,2]
[369042297,1751443845169,-2631.81,0.00016712,2]
[369042300,1751443845178,-460.0,0.00016712,2]
[369042302,1751443845188,-460.0,0.00016712,2]
[369042304,1751443845197,-460.0,0.00016712,2]
[369042306,1751443845207,-460.0,0.00016712,2]
[369042308,1751443845217,-583.45347007,0.00016712,2]
[369042309,1751443845226,-460.0,0.00016712,2]
[369042311,1751443845237,-460.0,0.00016712,2]
[369042313,1751443845247,-460.0,0.00016712,2]
[369042315,1751443845256,-460.0,0.00016712,2]
[369042317,1751443845266,-460.0,0.00016712,2]
[369042320,1751443845276,-460.0,0.00016712,2]
[369042321,1751443845285,-460.0,0.00016712,2]
[369042324,1751443845295,-460.0,0.00016712,2]
[369042326,1751443845304,-460.0,0.00016712,2]
[369042328,1751443845313,-266.5603266,0.00016712,2]
[369042330,1751443845322,-460.0,0.00016712,2]
[369042332,1751443845332,-292.04220623,0.00016712,2]
[369042334,1751443845341,-3305.11,0.00016712,2]
[369042336,1751443845351,-2728.27,0.00016712,2]
[369042338,1751443845360,-849.36,0.00016712,2]
[369042340,1751443845370,-460.0,0.00016712,2]
[369042342,1751443845379,-460.0,0.00016712,2]
[369042344,1751443845388,-460.0,0.00016712,2]
[369042346,1751443845397,-460.0,0.00016712,2]
[369042348,1751443845406,-615.95,0.00016712,2]
[369042350,1751443845416,-845.22,0.00016712,2]
[369042352,1751443845425,-460.0,0.00016712,2]
[369042354,1751443845434,-554.65680826,0.00016712,2]
[369042356,1751443845443,-594.16,0.00016712,2]
[369042358,1751443845453,-460.0,0.00016712,2]
[369042360,1751443845462,-460.0,0.00016712,2]
[369042362,1751443845472,-460.0,0.00016712,2]
[369042364,1751443845481,-460.0,0.00016712,2]
[369042366,1751443845490,-460.0,0.00016712,2]
[369042368,1751443845500,-515.26,0.00016712,2]
[369042370,1751443845509,-722.43,0.00016712,2]
[369042372,1751443845519,-460.0,0.00016712,2]
[369042374,1751443845529,-460.0,0.00016712,2]
[369042376,1751443845538,-460.0,0.00016712,2]
[369042378,1751443845548,-460.0,0.00016712,2]
[369042380,1751443845560,-460.0,0.00016712,2]
[369042382,1751443845569,-460.0,0.00016712,2]
[369042384,1751443845579,-659.03,0.00016712,2]
[369042386,1751443845588,-1153.43,0.00016712,2]
[369042388,1751443845598,-709.32,0.00016712,2]
[369042390,1751443845607,-547.81,0.00016712,2]
[369042392,1751443845616,-442.83065318,0.00016712,2]
[369042394,1751443845626,-1284.04,0.00016712,2]
[369042396,1751443845635,-460.0,0.00016712,2]
[369042398,1751443845644,-460.0,0.00016712,2]
[369042400,1751443845654,-232.24930353,0.00016712,2]
[369042403,1751443845664,-2203.89,0.00016712,2]
[369042405,1751443845673,-460.0,0.00016712,2]
[369042411,1751443845726,-478.14271446,0.00016712,2]
[369042413,1751443845736,-460.0,0.00016712,2]
[369042415,1751443845748,-693.55,0.00016712,2]
[369042417,1751443845757,-460.0,0.00016712,2]
[369042419,1751443845767,-460.0,0.00016712,2]
[369042421,1751443845781,-2135.01,0.00016712,2]
[369042423,1751443845791,-7054.28,0.00016712,2]
[369042426,1751443845800,-644.54,0.00016712,2]
[369042427,1751443845809,-151.0,0.00016712,2]
[369042429,1751443845819,-460.0,0.00016712,2]
[369042431,1751443845829,-460.0,0.00016712,2]
[369042433,1751443845838,-460.0,0.00016712,2]
[369042435,1751443845848,-460.0,0.00016712,2]
[369042437,1751443845858,-460.0,0.00016712,2]
[369042440,1751443845867,-460.0,0.00016712,2]
[369042441,1751443845877,-678.82,0.00016712,2]
[369042443,1751443845886,-863.54,0.00016712,2]
[369042445,1751443845896,-652.57,0.00016712,2]
[369042448,1751443845905,-1564.8,0.00016712,2]
[369042449,1751443845914,-750.41,0.00016712,2]
[369042451,1751443845923,-460.0,0.00016712,2]
[369042453,1751443845933,-444.23283178,0.00016712,2]
[369042455,1751443845942,-460.0,0.00016712,2]
[369042457,1751443845951,-460.0,0.00016712,2]
[369042459,1751443845960,-460.0,0.00016712,2]
[369042461,1751443845970,-586.48,0.00016712,2]
[369042463,1751443845982,-4867.25,0.00016712,2]
[369042465,1751443845991,-921.43,0.00016712,2]
[369042468,1751443846001,-858.86622399,0.00016758,2]
[369042469,1751443846013,-500.79792581,0.00016773,2]
[369042471,1751443846024,-500.0,0.00016773,2]
[369042472,1751443846033,-500.0,0.00016773,2]
[369042473,1751443846043,-404.312274,0.00016773,2]
[369042474,1751443846056,-500.0,0.00016773,2]